fUSD/lending_fUSD_20251026
["ID","MTS","AMOUNT","RATE_DAILY","PERIOD"]
[392419816,1761456653519,-500.0,0.00033545,9]
[392419817,1761456653528,-500.0,0.00033545,9]
[392419818,1761456653538,-752.95,0.00033545,9]
[392419819,1761456653547,-500.0,0.00033545,9]
[392419820,1761456653557,-500.0,0.00033545,9]
[392419821,1761456653566,-500.0,0.00033545,9]
[392419822,1761456653575,-500.0,0.00033545,9]
[392419823,1761456653584,-500.0,0.00033545,9]
[392419824,1761456653593,-500.0,0.00033545,9]
[392419825,1761456653602,-500.0,0.00033545,9]
[392419826,1761456653611,-310.09122709,0.00033545,9]
[392419827,1761456653622,-500.0,0.00033545,9]
[392419828,1761456653631,-500.0,0.00033545,9]
[392419829,1761456653640,-516.28135987,0.00033545,9]
[392419830,1761456653649,-500.0,0.00033545,9]
[392419831,1761456653658,-500.0,0.00033545,9]
[392419832,1761456653667,-611.66,0.00033545,9]
[392419833,1761456653676,-500.0,0.00033545,9]
[392419834,1761456653686,-500.0,0.00033545,9]
[392419835,1761456653695,-500.0,0.00033545,9]
[392419836,1761456653704,-500.0,0.00033558,7]
[392419837,1761456653713,-4056.43678105,0.00033572,2]
[392419838,1761456653721,-507.68870586,0.00033598,2]
[392419839,1761456653731,-500.0,0.00033602,7]
[392419840,1761456653740,-152.97,0.00033615,2]
[392419841,1761456653840,-1000.0,0.00033617,2]
[392419842,1761456653850,-500.0,0.00033653,7]
[392419843,1761456653859,-500.0,0.00033653,7]
[392419844,1761456653868,-400.0,0.00033658,5]
[392419845,1761456653878,-500.0,0.00033665,7]
[392419846,1761456653887,-756.7848,0.0003367,2]
[392419847,1761456653896,-500.0,0.00033673,7]
[392419848,1761456653906,-500.0,0.00033674,7]
[392419849,1761456653915,-500.0,0.00033685,7]
[392419850,1761456653925,-500.0,0.00033689,7]
[392419851,1761456653934,-500.0,0.00033695,7]
[392419852,1761456653943,-218.28996194,0.00033697,30]
[392419853,1761456653952,-500.0,0.00033697,2]
[392419854,1761456653961,-500.0,0.00033698,2]
[392419855,1761456653970,-500.0,0.00033698,9]
[392419856,1761456653979,-500.0,0.00033698,9]
[392419857,1761456653989,-500.0,0.00033698,9]
[392419858,1761456654000,-500.0,0.00033698,9]
[392419859,1761456654009,-282.83338501,0.00033698,9]
[392419860,1761456654019,-275.03,0.00033698,14]
[392419861,1761456654028,-500.0,0.00033698,9]
[392419862,1761456654037,-500.0,0.00033698,9]
[392419863,1761456654047,-500.0,0.00033698,9]
[392419864,1761456654056,-527.5332957,0.00033698,9]
[392419865,1761456654066,-266.02954501,0.00033698,9]
[392419866,1761456654076,-500.0,0.00033698,9]
[392419867,1761456654085,-500.0,0.00033698,9]
[392419868,1761456654095,-500.0,0.00033698,9]
[392419869,1761456654104,-1799.53,0.00033698,9]
[392419870,1761456654114,-500.0,0.00033698,9]
[392419871,1761456654123,-619.52,0.00033698,9]
[392419872,1761456654133,-500.0,0.00033698,9]
[392419873,1761456654142,-500.0,0.00033698,9]
[392419874,1761456654151,-500.0,0.00033698,9]
[392419875,1761456654161,-500.0,0.00033698,9]
[392419876,1761456654170,-500.0,0.00033698,9]
[392419877,1761456654179,-500.0,0.00033698,9]
[392419878,1761456654189,-500.0,0.00033698,9]
[392419879,1761456654204,-500.0,0.00033698,9]
[392419880,1761456654213,-238.86,0.000337,30]
[392419881,1761456654223,-1425.0,0.00033708,2]
[392419882,1761456654233,-500.0,0.00033748,7]
[392419883,1761456654244,-1425.0,0.0003375,2]
[392419884,1761456654254,-1425.0,0.00033751,2]
[392419885,1761456654263,-500.0,0.00033753,7]
[392419886,1761456654272,-7004.58342019,0.00033767,2]
[392419887,1761456654282,-500.0,0.00033783,9]
[392419888,1761456654292,-500.0,0.00033783,9]
[392419889,1761456654301,-500.0,0.00033783,9]
[392419890,1761456654310,-238.46041105,0.00033783,9]
[392419891,1761456654319,-500.0,0.00033783,9]
[392419892,1761456654329,-699.08,0.00033783,9]
[392419893,1761456654338,-210.400225,0.00033785,7]
[392419894,1761456654347,-500.0,0.00033787,7]
[392419895,1761456654357,-540.23,0.0003381,9]
[392419896,1761456654366,-500.0,0.0003381,9]
[392419897,1761456654376,-500.0,0.0003381,9]
[392419898,1761456654386,-500.0,0.0003381,9]
[392419899,1761456654394,-500.0,0.0003381,9]
[392419900,1761456654403,-500.0,0.0003381,9]
[392419901,1761456654413,-500.0,0.0003381,9]
[392419902,1761456654422,-500.0,0.0003381,9]
[392419903,1761456654431,-500.0,0.0003381,9]
[392419904,1761456654440,-500.0,0.0003381,9]
[392419905,1761456654450,-500.0,0.0003381,9]
[392419906,1761456654458,-500.0,0.0003381,9]
[392419907,1761456654467,-500.0,0.0003381,9]
[392419908,1761456654477,-500.0,0.0003381,9]
[392419909,1761456654486,-500.0,0.0003381,9]
[392419910,1761456654495,-595.52688493,0.00033811,9]
[392419911,1761456654504,-500.0,0.00033811,9]
[392419912,1761456654514,-500.0,0.00033811,9]
[392419913,1761456654523,-500.0,0.00033811,9]
[392419914,1761456654531,-500.0,0.00033811,9]
[392419915,1761456654541,-500.0,0.00033811,9]
[392419916,1761456654550,-500.0,0.00033811,9]
[392419917,1761456654559,-500.0,0.00033811,9]
[392419918,1761456654568,-500.0,0.00033811,9]
[392419919,1761456654577,-315.77769798,0.00033811,9]
[392419920,1761456654586,-500.0,0.00033811,9]
[392419921,1761456654595,-500.0,0.00033811,9]
[392419922,1761456654605,-500.0,0.00033811,9]
[392419923,1761456654614,-500.0,0.00033811,9]
[392419924,1761456654624,-500.0,0.00033811,9]
[392419925,1761456654633,-500.0,0.00033811,9]
[392419926,1761456654642,-500.0,0.00033811,9]
[392419927,1761456654651,-573.91,0.00033811,9]
[392419928,1761456654660,-500.0,0.00033811,9]
[392419929,1761456654669,-500.0,0.00033811,9]
[392419930,1761456654678,-500.0,0.00033811,9]
[392419931,1761456654687,-500.0,0.00033811,9]
[392419932,1761456654696,-500.0,0.00033811,9]
[392419933,1761456654705,-500.0,0.00033811,9]
[392419934,1761456654714,-500.0,0.00033811,9]
[392419935,1761456654723,-2845.72,0.00033811,9]
[392419936,1761456654732,-500.0,0.00033811,9]
[392419937,1761456654743,-2885.33,0.00033811,2]
[392419938,1761456654752,-416.95373308,0.00033811,9]
[392419939,1761456654761,-500.0,0.00033811,9]
[392419940,1761456654770,-500.0,0.00033811,9]
[392419941,1761456654779,-500.0,0.00033811,9]
[392419942,1761456654788,-500.0,0.00033811,9]
[392419943,1761456654797,-764.0,0.00033811,9]
[392419944,1761456654806,-500.0,0.00033811,9]
[392419945,1761456654815,-500.0,0.00033811,9]
[392419946,1761456654824,-500.0,0.00033811,9]
[392419947,1761456654833,-509.33,0.00033811,9]
[392419948,1761456654843,-500.0,0.00033811,9]
[392419949,1761456654852,-500.0,0.00033818,9]
[392419950,1761456654861,-229.46865718,0.00033818,9]
[392419951,1761456654870,-500.0,0.00033818,9]
[392419952,1761456654883,-500.0,0.00033818,9]
[392419953,1761456654894,-500.0,0.00033818,9]
[392419954,1761456654904,-500.0,0.00033818,9]
[392419955,1761456654916,-500.0,0.00033818,9]
[392419956,1761456654925,-500.0,0.00033818,9]
[392419957,1761456654935,-500.0,0.00033818,9]
[392419958,1761456654945,-587.563173,0.00033818,9]
[392419959,1761456654955,-500.0,0.00033818,9]
[392419960,1761456654964,-142.97679489,0.00033818,9]
[392419961,1761456655111,-9.46312711,0.00033818,9]
[392419962,1761456655121,-500.0,0.00033818,9]
[392419963,1761456655131,-801.938273,0.00033818,9]
[392419964,1761456655139,-500.0,0.00033818,9]
[392419965,1761456655148,-500.0,0.00033818,9]
[392419966,1761456655158,-500.0,0.00033818,9]
[392419967,1761456655167,-500.0,0.00033818,9]
[392419968,1761456655181,-500.0,0.00033818,9]
[392419969,1761456655190,-500.0,0.00033818,9]
[392419970,1761456655200,-532.63473268,0.00033818,9]
[392419971,1761456655209,-500.0,0.00033818,9]
[392419972,1761456655218,-500.0,0.00033818,9]
[392419973,1761456655228,-500.0,0.00033818,9]
[392419974,1761456655240,-500.0,0.00033818,9]
[392419975,1761456655249,-500.0,0.00033818,9]
[392419976,1761456655258,-500.0,0.00033818,9]
[392419977,1761456655267,-500.0,0.00033818,9]
[392419978,1761456655276,-500.0,0.00033818,9]
[392419979,1761456655286,-500.0,0.00033818,9]
[392419980,1761456655295,-299.9590481,0.00033818,9]
[392419981,1761456655304,-500.0,0.00033818,9]
[392419982,1761456655403,-500.0,0.00033818,9]
[392419983,1761456655412,-500.0,0.00033818,9]
[392419984,1761456655424,-500.0,0.00033818,9]
[392419985,1761456655435,-500.0,0.00033818,9]
[392419986,1761456655444,-500.0,0.00033818,9]
[392419987,1761456655454,-500.0,0.00033818,9]
[392419988,1761456655463,-500.0,0.00033818,9]
[392419989,1761456655472,-500.0,0.00033818,9]
[392419990,1761456655481,-500.0,0.00033818,9]
[392419991,1761456655490,-500.0,0.00033818,9]
[392419992,1761456655499,-229.57138977,0.00033818,9]
[392419993,1761456655508,-604.36558646,0.00033818,9]
[392419994,1761456655517,-500.0,0.00033818,9]
[392419995,1761456655527,-479.46502183,0.00033818,9]
[392419996,1761456655537,-500.0,0.00033819,9]
[392419997,1761456655548,-362.1744927,0.00033819,9]
[392419998,1761456655558,-500.0,0.00033819,9]
[392419999,1761456655567,-500.0,0.00033819,9]
[392420000,1761456655577,-500.0,0.00033819,9]
[392420001,1761456655585,-500.0,0.00033819,9]
[392420002,1761456655595,-500.0,0.00033819,9]
[392420003,1761456655604,-500.0,0.00033819,9]
[392420004,1761456655615,-467.74878733,0.00033819,9]
[392420005,1761456655626,-500.0,0.00033819,9]
[392420006,1761456655635,-500.0,0.00033819,9]
[392420007,1761456655645,-500.0,0.00033819,9]
[392420008,1761456655655,-500.0,0.00033819,9]
[392420009,1761456655667,-500.0,0.00033819,9]
[392420010,1761456655676,-500.0,0.00033819,9]
[392420011,1761456655685,-500.0,0.00033819,9]
[392420012,1761456655695,-500.0,0.00033819,9]
[392420013,1761456655706,-500.0,0.00033819,9]
[392420014,1761456655715,-500.0,0.00033819,7]
[392420015,1761456655724,-500.0,0.00033819,9]
[392420016,1761456655733,-500.0,0.00033819,9]
[392420017,1761456655742,-500.0,0.00033819,9]
[392420018,1761456655752,-500.0,0.00033819,9]
[392420019,1761456655761,-500.0,0.00033819,9]
[392420020,1761456655771,-500.0,0.00033819,9]
[392420021,1761456655783,-500.0,0.00033819,9]
[392420022,1761456655794,-500.0,0.00033819,9]
[392420023,1761456655804,-500.0,0.00033819,9]
[392420024,1761456655815,-500.0,0.00033819,9]
[392420025,1761456655824,-500.0,0.00033819,9]
[392420026,1761456655834,-500.0,0.00033819,9]
[392420027,1761456655843,-500.0,0.00033819,9]
[392420028,1761456655852,-500.0,0.00033819,9]
[392420029,1761456655861,-500.0,0.00033819,9]
[392420030,1761456655872,-688.52,0.00033819,9]
[392420031,1761456655882,-500.0,0.00033819,9]
[392420032,1761456655891,-500.0,0.00033819,9]
[392420033,1761456655900,-500.0,0.00033819,9]
[392420034,1761456655909,-500.0,0.00033819,9]
[392420035,1761456655918,-500.0,0.00033819,9]
[392420036,1761456655926,-500.0,0.00033819,9]
[392420037,1761456655935,-500.0,0.00033819,9]
[392420038,1761456655945,-500.0,0.00033819,9]
[392420039,1761456655954,-500.0,0.00033819,9]
[392420040,1761456655964,-500.0,0.00033819,9]
[392420041,1761456655974,-500.0,0.00033819,9]
[392420042,1761456655984,-500.0,0.00033819,9]
[392420043,1761456655993,-500.0,0.00033819,9]
[392420044,1761456656002,-531.13,0.00033819,9]
[392420045,1761456656012,-500.0,0.00033819,9]
[392420046,1761456656023,-500.0,0.00033819,9]
[392420047,1761456656032,-500.0,0.00033819,9]
[392420048,1761456656041,-578.12119712,0.00033819,9]
[392420049,1761456656050,-500.0,0.00033819,9]
[392420050,1761456656061,-500.0,0.00033819,9]
[392420051,1761456656070,-500.0,0.00033819,9]
[392420052,1761456656079,-500.0,0.00033819,9]
[392420053,1761456656089,-500.0,0.00033819,9]
[392420054,1761456656098,-500.0,0.00033819,9]
[392420055,1761456656108,-500.0,0.00033819,9]
[392420056,1761456656117,-500.0,0.00033819,9]
[392420057,1761456656126,-510.02,0.00033819,9]
[392420058,1761456656135,-500.0,0.00033819,9]
[392420059,1761456656144,-500.0,0.00033819,9]
[392420060,1761456656160,-500.0,0.00033819,9]
[392420061,1761456656179,-500.0,0.00033819,9]
[392420062,1761456656192,-500.0,0.00033819,9]
[392420063,1761456656208,-500.0,0.00033819,9]
[392420064,1761456656224,-647.50514849,0.00033819,9]
[392420065,1761456656242,-500.0,0.00033819,9]
[392420066,1761456656257,-536.81,0.00033819,2]
[392420067,1761456656270,-500.0,0.00033819,9]
[392420068,1761456656290,-153.9096855,0.00033819,9]
[392420069,1761456656306,-500.0,0.00033819,9]
[392420070,1761456656323,-500.0,0.00033819,9]
[392420071,1761456656337,-500.0,0.00033819,2]
[392420072,1761456656354,-500.0,0.00033819,9]
[392420073,1761456656369,-500.0,0.00033819,9]
[392420074,1761456656385,-500.0,0.00033819,9]
[392420075,1761456656401,-500.0,0.00033819,9]
[392420076,1761456656417,-500.0,0.00033819,9]
[392420077,1761456656432,-500.0,0.00033819,9]
[392420078,1761456656443,-500.0,0.00033819,9]
[392420079,1761456656458,-500.0,0.00033819,9]
[392420080,1761456656477,-500.0,0.00033819,9]
[392420081,1761456656488,-500.0,0.00033819,9]
[392420082,1761456656502,-500.0,0.00033819,9]
[392420083,1761456656517,-500.0,0.00033819,9]
[392420084,1761456656528,-500.0,0.00033819,9]
[392420085,1761456656540,-500.0,0.00033819,9]
[392420086,1761456656552,-500.0,0.00033819,9]
[392420087,1761456656565,-548.94703135,0.00033819,9]
[392420088,1761456656578,-500.0,0.00033819,9]
[392420089,1761456656591,-538.46907055,0.00033819,9]
[392420090,1761456656604,-752.95,0.00033819,9]
[392420091,1761456656617,-500.0,0.00033819,9]
[392420092,1761456656630,-500.0,0.00033819,9]
[392420093,1761456656642,-500.0,0.00033819,9]
[392420094,1761456656654,-500.0,0.00033819,9]
[392420095,1761456656667,-500.0,0.00033819,9]
[392420096,1761456656679,-500.0,0.00033819,9]
[392420097,1761456656692,-500.0,0.00033819,9]
[392420098,1761456656706,-276.75866433,0.00033819,9]
[392420099,1761456656720,-500.0,0.00033819,9]
[392420100,1761456656735,-589.3252297,0.00033819,9]
[392420101,1761456656748,-486.04759831,0.00033819,9]
[392420102,1761456656762,-611.66,0.00033819,9]
[392420103,1761456656775,-560.28088485,0.00033819,9]
[392420104,1761456656788,-500.0,0.00033819,9]
[392420105,1761456656801,-500.0,0.00033819,9]
[392420106,1761456656816,-1425.0,0.00033836,2]
[392420107,1761456656828,-500.0,0.00033844,7]
[392420108,1761456656840,-500.0,0.00033844,9]
[392420109,1761456656853,-451.0,0.00033863,5]
[392420110,1761456656866,-174.0,0.00033863,2]
[392420111,1761456656880,-162.32861673,0.00033869,2]
[392420112,1761456656892,-500.0,0.00033873,7]
[392420113,1761456656902,-500.0,0.00033873,2]
[392420114,1761456656913,-500.0,0.00033879,9]
[392420115,1761456656922,-500.0,0.00033879,7]
[392420116,1761456656934,-500.0,0.00033879,2]
[392420117,1761456656944,-226592.59408234,0.0003388,2]
[392420118,1761456656953,-1425.0,0.00033886,2]
[392420119,1761456656964,-1000.0,0.00033891,2]
[392420120,1761456656973,-215.0,0.000339,11]
[392420121,1761456656985,-2700.0,0.000339,12]
[392420122,1761456656995,-610.75891912,0.00033901,7]
[392420123,1761456657005,-500.0,0.00033901,9]
[392420124,1761456657015,-2000.0,0.00033902,3]
[392420125,1761456657024,-500.0,0.00033938,7]
[392420126,1761456657033,-500.0,0.00033963,7]
[392420127,1761456657043,-500.0,0.00033966,7]
[392420128,1761456657052,-500.0,0.00033971,9]
[392420129,1761456657061,-1425.0,0.00033971,2]
[392420130,1761456657071,-368.76858415,0.00033972,2]
[392420131,1761456657080,-500.0,0.00033972,9]
[392420132,1761456657089,-500.0,0.00033972,9]
[392420133,1761456657098,-500.0,0.00033972,9]
[392420134,1761456657107,-500.0,0.00033972,9]
[392420135,1761456657116,-275.0719823,0.00033972,14]
[392420136,1761456657127,-500.0,0.00033972,9]
[392420137,1761456657136,-500.0,0.00033972,9]
[392420138,1761456657146,-500.0,0.00033972,9]
[392420139,1761456657355,-500.0,0.00033972,9]
[392420140,1761456657376,-500.0,0.00033972,9]
[392420141,1761456657391,-500.0,0.00033972,9]
[392420142,1761456657402,-1799.53,0.00033972,9]
[392420143,1761456657412,-500.0,0.00033972,9]
[392420144,1761456657424,-619.52,0.00033972,9]
[392420145,1761456657433,-500.0,0.00033972,9]
[392420146,1761456657444,-500.0,0.00033972,9]
[392420147,1761456657453,-500.0,0.00033972,9]
[392420148,1761456657462,-500.0,0.00033972,9]
[392420149,1761456657472,-500.0,0.00033972,9]
[392420150,1761456657483,-500.0,0.00033972,9]
[392420151,1761456657494,-500.0,0.00033972,9]
[392420152,1761456657504,-500.0,0.00033972,9]
[392420153,1761456657514,-4056.43678105,0.00033986,2]
[392420154,1761456657523,-215.0,0.00034,11]
[392420155,1761456657532,-300.0,0.00034,120]
[392420156,1761456657541,-160.46146004,0.00034,2]
[392420157,1761456657550,-500.0,0.00034001,7]
[392420158,1761456657559,-500.0,0.00034009,7]
[392420159,1761456657568,-275.0,0.00034048,2]
[392420160,1761456657578,-500.0,0.00034057,9]
[392420161,1761456657587,-500.0,0.00034057,9]
[392420162,1761456657597,-500.0,0.00034057,9]
[392420163,1761456657607,-500.0,0.00034057,9]
[392420164,1761456657618,-699.08,0.00034057,9]
[392420165,1761456657627,-272.0,0.00034058,2]
[392420166,1761456657637,-500.0,0.00034072,7]
[392420167,1761456657647,-507.68870584,0.00034076,2]
[392420168,1761456657656,-500.0,0.00034084,9]
[392420169,1761456657665,-540.23,0.00034084,9]
[392420170,1761456657675,-500.0,0.00034084,9]
[392420171,1761456657684,-500.0,0.00034084,9]
[392420172,1761456657693,-500.0,0.00034084,9]
[392420173,1761456657702,-500.0,0.00034084,9]
[392420174,1761456657711,-500.0,0.00034084,9]
[392420175,1761456657722,-500.0,0.00034084,9]
[392420176,1761456657733,-500.0,0.00034084,9]
[392420177,1761456657743,-219.48953524,0.00034084,9]
[392420178,1761456657752,-500.0,0.00034084,9]
[392420179,1761456657763,-500.0,0.00034084,9]
[392420180,1761456657772,-500.0,0.00034084,9]
[392420181,1761456657781,-500.0,0.00034084,9]
[392420182,1761456657790,-500.0,0.00034084,9]
[392420183,1761456657799,-500.0,0.00034084,9]
[392420184,1761456657807,-500.0,0.00034085,9]
[392420185,1761456657816,-500.0,0.00034085,9]
[392420186,1761456657825,-446.2249745,0.00034085,9]
[392420187,1761456657835,-500.0,0.00034085,9]
[392420188,1761456657844,-500.0,0.00034085,9]
[392420189,1761456657853,-500.0,0.00034085,9]
[392420190,1761456657863,-500.0,0.00034085,9]
[392420191,1761456657872,-500.0,0.00034085,9]
[392420192,1761456657880,-500.0,0.00034085,9]
[392420193,1761456657889,-500.0,0.00034085,9]
[392420194,1761456657898,-285.41456754,0.00034085,9]
[392420195,1761456657909,-500.0,0.00034085,9]
[392420196,1761456657918,-500.0,0.00034085,9]
[392420197,1761456657927,-500.0,0.00034085,9]
[392420198,1761456657936,-500.0,0.00034085,9]
[392420199,1761456657947,-573.91,0.00034085,9]
[392420200,1761456657957,-500.0,0.00034085,9]
[392420201,1761456657968,-500.0,0.00034085,9]
[392420202,1761456657977,-500.0,0.00034085,9]
[392420203,1761456657987,-500.0,0.00034085,9]
[392420204,1761456657996,-500.0,0.00034085,9]
[392420205,1761456658006,-500.0,0.00034085,9]
[392420206,1761456658015,-500.0,0.00034085,9]
[392420207,1761456658024,-2845.72,0.00034085,9]
[392420208,1761456658034,-500.0,0.00034085,9]
[392420209,1761456658043,-2885.33,0.00034085,2]
[392420210,1761456658051,-500.0,0.00034085,9]
[392420211,1761456658060,-500.0,0.00034085,9]
[392420212,1761456658070,-500.0,0.00034085,9]
[392420213,1761456658079,-500.0,0.00034085,9]
[392420214,1761456658088,-764.0,0.00034085,9]
[392420215,1761456658097,-500.0,0.00034085,9]
[392420216,1761456658106,-508.39145988,0.00034085,9]
[392420217,1761456658115,-500.0,0.00034085,9]
[392420218,1761456658124,-509.33,0.00034085,9]
[392420219,1761456658134,-500.0,0.00034085,9]
[392420220,1761456658144,-500.0,0.00034088,7]
[392420221,1761456658152,-529.60548709,0.00034089,9]
[392420222,1761456658162,-500.0,0.00034092,9]
[392420223,1761456658173,-500.0,0.00034092,9]
[392420224,1761456658184,-500.0,0.00034092,9]
[392420225,1761456658193,-500.0,0.00034092,9]
[392420226,1761456658203,-500.0,0.00034092,9]
[392420227,1761456658213,-600.84743939,0.00034092,9]
[392420228,1761456658223,-500.0,0.00034092,9]
[392420229,1761456658232,-500.0,0.00034092,9]
[392420230,1761456658241,-587.563173,0.00034092,9]
[392420231,1761456658250,-500.0,0.00034092,9]
[392420232,1761456658259,-152.439922,0.00034092,9]
[392420233,1761456658267,-500.0,0.00034092,9]
[392420234,1761456658276,-801.938273,0.00034092,9]
[392420235,1761456658285,-500.0,0.00034092,9]
[392420236,1761456658294,-500.0,0.00034092,9]
[392420237,1761456658303,-500.0,0.00034092,9]
[392420238,1761456658312,-500.0,0.00034092,9]
[392420239,1761456658321,-500.0,0.00034092,9]
[392420240,1761456658330,-500.0,0.00034092,9]
[392420241,1761456658339,-500.0,0.00034092,9]
[392420242,1761456658348,-500.0,0.00034092,9]
[392420243,1761456658356,-247.68843628,0.00034092,9]
[392420244,1761456658366,-500.0,0.00034092,9]
[392420245,1761456658375,-500.0,0.00034092,9]
[392420246,1761456658384,-500.0,0.00034092,9]
[392420247,1761456658392,-289.03962844,0.00034092,9]
[392420248,1761456658401,-500.0,0.00034092,9]
[392420249,1761456658410,-500.0,0.00034092,9]
[392420250,1761456658418,-500.0,0.00034092,9]
[392420251,1761456658428,-500.0,0.00034092,9]
[392420252,1761456658437,-500.0,0.00034092,9]
[392420253,1761456658447,-497.08149617,0.00034092,9]
[392420254,1761456658456,-500.0,0.00034092,9]
[392420255,1761456658465,-562.26362252,0.00034092,9]
[392420256,1761456658475,-367.97414871,0.00034092,9]
[392420257,1761456658484,-500.0,0.00034092,9]
[392420258,1761456658494,-500.0,0.00034092,9]
[392420259,1761456658504,-160.387654,0.00034092,9]
[392420260,1761456658514,-500.0,0.00034092,9]
[392420261,1761456658523,-500.0,0.00034092,2]
[392420262,1761456658533,-500.0,0.00034092,9]
[392420263,1761456658541,-500.0,0.00034092,9]
[392420264,1761456658551,-500.0,0.00034093,9]
[392420265,1761456658560,-500.0,0.00034093,9]
[392420266,1761456658568,-500.0,0.00034093,9]
[392420267,1761456658579,-500.0,0.00034093,9]
[392420268,1761456658588,-500.0,0.00034093,9]
[392420269,1761456658597,-500.0,0.00034093,9]
[392420270,1761456658605,-500.0,0.00034093,9]
[392420271,1761456658614,-500.0,0.00034093,9]
[392420272,1761456658623,-412.03295994,0.00034093,9]
[392420273,1761456658631,-500.0,0.00034093,9]
[392420274,1761456658640,-500.0,0.00034093,9]
[392420275,1761456658649,-500.0,0.00034093,9]
[392420276,1761456658658,-500.0,0.00034093,9]
[392420277,1761456658666,-500.0,0.00034093,9]
[392420278,1761456658675,-500.0,0.00034093,9]
[392420279,1761456658684,-500.0,0.00034093,9]
[392420280,1761456658695,-500.0,0.00034093,7]
[392420281,1761456658705,-604.69049029,0.00034093,9]
[392420282,1761456658715,-500.0,0.00034093,9]
[392420283,1761456658723,-500.0,0.00034093,9]
[392420284,1761456658733,-500.0,0.00034093,9]
[392420285,1761456658743,-500.0,0.00034093,9]
[392420286,1761456658754,-500.0,0.00034093,9]
[392420287,1761456658764,-500.0,0.00034093,9]
[392420288,1761456658774,-500.0,0.00034093,9]
[392420289,1761456658785,-585.42833008,0.00034093,9]
[392420290,1761456658794,-500.0,0.00034093,9]
[392420291,1761456658803,-500.0,0.00034093,9]
[392420292,1761456658812,-500.0,0.00034093,9]
[392420294,1761456658820,-356.02095289,0.00034093,9]
[392420295,1761456658829,-500.0,0.00034093,9]
[392420296,1761456658838,-500.0,0.00034093,9]
[392420297,1761456658847,-688.52,0.00034093,9]
[392420298,1761456658856,-500.0,0.00034093,9]
[392420299,1761456658865,-500.0,0.00034093,9]
[392420300,1761456658873,-220.26604609,0.00034093,9]
[392420301,1761456658882,-500.0,0.00034093,9]
[392420302,1761456658891,-214.53367443,0.00034093,9]
[392420303,1761456658899,-500.0,0.00034093,9]
[392420304,1761456658908,-500.0,0.00034093,9]
[392420305,1761456658917,-500.0,0.00034093,9]
[392420306,1761456658926,-221.25797823,0.00034093,9]
[392420307,1761456658934,-500.0,0.00034093,9]
[392420308,1761456658943,-474.92702291,0.00034093,9]
[392420309,1761456658952,-500.0,0.00034093,9]
[392420310,1761456658961,-578.78838907,0.00034093,9]
[392420311,1761456658970,-531.13,0.00034093,9]
[392420312,1761456658979,-500.0,0.00034093,9]
[392420313,1761456658988,-500.0,0.00034093,9]
[392420314,1761456658997,-500.0,0.00034093,9]
[392420315,1761456659006,-500.0,0.00034093,9]
[392420316,1761456659015,-254.50506425,0.00034093,9]